fUSD/lending_fUSD_20250606
["ID","MTS","AMOUNT","RATE_DAILY","PERIOD"]
[364754544,1749229863857,-1531.65,0.0002789,5]
[364754545,1749229863870,-1808.13,0.0002789,5]
[364754546,1749229863883,-480.0,0.0002789,5]
[364754547,1749229863897,-480.0,0.0002789,5]
[364754548,1749229863909,-480.0,0.0002789,5]
[364754549,1749229863923,-10000.0,0.0002789,7]
[364754550,1749229863936,-1978.88,0.0002789,5]
[364754551,1749229863949,-480.0,0.0002789,5]
[364754552,1749229863962,-2908.51,0.0002789,5]
[364754553,1749229863975,-669.35,0.0002789,5]
[364754554,1749229863989,-480.0,0.0002789,5]
[364754555,1749229864002,-1262.05,0.0002789,5]
[364754556,1749229864016,-10000.0,0.0002789,7]
[364754557,1749229864029,-480.0,0.0002789,5]
[364754558,1749229864042,-480.0,0.0002789,5]
[364754559,1749229864056,-1585.44,0.0002789,5]
[364754560,1749229864070,-863.16,0.0002789,5]
[364754561,1749229864084,-716.92,0.0002789,5]
[364754562,1749229864098,-480.0,0.0002789,5]
[364754563,1749229864112,-480.0,0.0002789,5]
[364754564,1749229864125,-480.0,0.0002789,5]
[364754565,1749229864139,-490.14,0.0002789,5]
[364754566,1749229864152,-10266.6,0.0002789,5]
[364754567,1749229864166,-480.0,0.0002789,5]
[364754568,1749229864179,-2790.95,0.0002789,5]
[364754569,1749229864193,-1988.94,0.0002789,5]
[364754570,1749229864206,-562.55,0.0002789,5]
[364754571,1749229864220,-480.0,0.0002789,5]
[364754572,1749229864232,-480.0,0.0002789,5]
[364754573,1749229864245,-480.0,0.0002789,5]
[364754574,1749229864259,-620.01,0.0002789,5]
[364754575,1749229864273,-518.16,0.0002789,5]
[364754576,1749229864286,-576.54,0.0002789,5]
[364754577,1749229864299,-496.01,0.0002789,5]
[364754578,1749229864313,-480.0,0.0002789,5]
[364754579,1749229864326,-480.0,0.0002789,5]
[364754580,1749229864339,-480.0,0.0002789,5]
[364754581,1749229864352,-3901.93,0.0002789,5]
[364754582,1749229864366,-480.0,0.0002789,5]
[364754583,1749229864379,-480.0,0.0002789,5]
[364754584,1749229864391,-1302.74,0.0002789,5]
[364754585,1749229864405,-14757.67,0.0002789,5]
[364754586,1749229864418,-2148.25,0.0002789,5]
[364754587,1749229864432,-9779.61,0.0002789,5]
[364754588,1749229864444,-480.0,0.0002789,5]
[364754589,1749229864459,-21008.66,0.0002789,5]
[364754590,1749229864473,-673.26,0.0002789,5]
[364754591,1749229864486,-480.0,0.0002789,5]
[364754592,1749229864498,-480.0,0.0002789,5]
[364754593,1749229864512,-889.91,0.0002789,5]
[364754594,1749229864524,-2708.81,0.0002789,5]
[364754595,1749229864539,-776.83,0.0002789,5]
[364754596,1749229864552,-1377.28,0.0002789,5]
[364754597,1749229864566,-585.43,0.0002789,5]
[364754598,1749229864581,-480.0,0.0002789,5]
[364754599,1749229864594,-151.0,0.0002789,7]
[364754600,1749229864611,-682.39,0.0002789,5]
[364754601,1749229864621,-2005.29,0.0002789,5]
[364754602,1749229864631,-4252.69,0.0002789,5]
[364754603,1749229864640,-2178.41,0.0002789,5]
[364754604,1749229864651,-848.79,0.0002789,5]
[364754605,1749229864664,-1974.61,0.0002789,5]
[364754606,1749229864673,-827.75,0.0002789,5]
[364754607,1749229864683,-480.0,0.0002789,5]
[364754608,1749229864693,-480.0,0.0002789,5]
[364754609,1749229864703,-480.0,0.0002789,2]
[364754610,1749229865044,-2003.46,0.0002789,5]
[364754611,1749229865057,-637.64,0.0002789,5]
[364754612,1749229865066,-1355.4,0.0002789,5]
[364754613,1749229865075,-480.0,0.0002789,5]
[364754614,1749229865085,-480.0,0.0002789,5]
[364754615,1749229865094,-480.0,0.0002789,5]
[364754616,1749229865104,-480.0,0.0002789,5]
[364754617,1749229865113,-480.0,0.0002789,2]
[364754618,1749229865122,-1289.4,0.0002789,5]
[364754619,1749229865131,-841.89,0.0002789,5]
[364754620,1749229865140,-819.47,0.0002789,5]
[364754621,1749229865150,-1582.7,0.0002789,5]
[364754622,1749229865162,-849.03,0.0002789,5]
[364754623,1749229865171,-739.93,0.0002789,5]
[364754624,1749229865180,-787.91,0.0002789,5]
[364754625,1749229865189,-692.16,0.0002789,5]
[364754626,1749229865198,-1648.73,0.0002789,5]
[364754627,1749229865208,-754.23,0.0002789,5]
[364754628,1749229865217,-580.44,0.0002789,5]
[364754629,1749229865226,-1093.91,0.0002789,5]
[364754630,1749229865235,-480.0,0.0002789,5]
[364754631,1749229865245,-1017.84,0.0002789,5]
[364754632,1749229865254,-500.0,0.0002789,5]
[364754633,1749229865263,-500.0,0.0002789,5]
[364754634,1749229865272,-429.0,0.0002789,5]
[364754635,1749229865281,-500.0,0.0002789,5]
[364754636,1749229865290,-500.0,0.0002789,5]
[364754637,1749229865299,-428.0,0.0002789,2]
[364754638,1749229865309,-2022.0,0.0002789,5]
[364754639,1749229865319,-500.0,0.0002789,5]
[364754640,1749229865330,-500.0,0.0002789,5]
[364754641,1749229865340,-705.0,0.0002789,5]
[364754642,1749229865349,-488.0,0.0002789,5]
[364754643,1749229865358,-1000.0,0.000279,2]
[364754644,1749229865367,-2100.0,0.000279,10]
[364754645,1749229865377,-500.0,0.00027918,5]
[364754646,1749229865386,-500.0,0.00027918,5]
[364754647,1749229865395,-429.0,0.00027918,5]
[364754648,1749229865405,-500.0,0.00027918,5]
[364754649,1749229865414,-428.0,0.00027918,2]
[364754650,1749229865424,-2022.0,0.00027918,5]
[364754651,1749229865433,-500.0,0.00027918,5]
[364754652,1749229865444,-500.0,0.00027918,5]
[364754653,1749229865455,-705.0,0.00027918,5]
[364754654,1749229865465,-488.0,0.00027918,5]
[364754655,1749229865474,-500.0,0.00027921,5]
[364754656,1749229865483,-500.0,0.00027921,5]
[364754657,1749229865493,-500.0,0.00027921,2]
[364754658,1749229865503,-500.0,0.00027921,5]
[364754659,1749229865513,-1015.37207662,0.00027921,3]
[364754660,1749229865523,-1000.0,0.00027921,5]
[364754661,1749229865532,-594.82396334,0.00027921,14]
[364754662,1749229865542,-1408.86277605,0.0002794,2]
[364754663,1749229865556,-150.0,0.00027945,5]
[364754664,1749229865565,-500.0,0.00027945,5]
[364754665,1749229865574,-429.0,0.00027945,5]
[364754666,1749229865583,-500.0,0.00027945,5]
[364754667,1749229865592,-428.0,0.00027945,2]
[364754668,1749229865603,-2022.0,0.00027945,5]
[364754669,1749229865617,-500.0,0.00027945,5]
[364754670,1749229865627,-500.0,0.00027945,5]
[364754671,1749229865638,-705.0,0.00027945,5]
[364754672,1749229865648,-488.0,0.00027945,5]
[364754673,1749229865659,-161.74902463,0.00027954,2]
[364754674,1749229865668,-348.32517245,0.00027954,2]
[364754675,1749229865677,-34288.51421164,0.00027954,2]
[364754676,1749229865688,-211.60439565,0.00027961,2]
[364754677,1749229865698,-1614.10259472,0.00027969,18]
[364754678,1749229865707,-383.05,0.00027971,2]
[364754679,1749229865717,-500.0,0.00027972,7]
[364754680,1749229865727,-500.0,0.00027973,5]
[364754681,1749229865736,-429.0,0.00027973,5]
[364754682,1749229865746,-238.41801222,0.00027973,5]
[364754683,1749229865755,-428.0,0.00027973,2]
[364754684,1749229865764,-2022.0,0.00027973,5]
[364754685,1749229865773,-276.74963658,0.00027973,5]
[364754686,1749229865783,-449.70883138,0.00027973,5]
[364754687,1749229865794,-705.0,0.00027973,5]
[364754688,1749229865805,-488.0,0.00027973,5]
[364754689,1749229865816,-500.0,0.00028,5]
[364754690,1749229865826,-429.0,0.00028,5]
[364754691,1749229865835,-428.0,0.00028,2]
[364754692,1749229865844,-2022.0,0.00028,5]
[364754693,1749229865854,-705.0,0.00028,5]
[364754694,1749229865863,-488.0,0.00028,5]
[364754695,1749229865873,-819.85951285,0.00028024,2]
[364754696,1749229865884,-500.0,0.00028027,5]
[364754697,1749229865896,-429.0,0.00028027,5]
[364754698,1749229865907,-428.0,0.00028027,2]
[364754699,1749229865916,-2022.0,0.00028027,5]
[364754700,1749229865926,-705.0,0.00028027,5]
[364754701,1749229865935,-488.0,0.00028027,5]
[364754702,1749229865944,-26569.25474906,0.00028034,4]
[364754703,1749229865954,-224965.6126876,0.00028034,2]
[364754704,1749229865963,-198422.39581,0.00028034,2]
[364754705,1749229865973,-151.0,0.00028034,7]
[364754706,1749229865983,-105510.842392,0.00028034,2]
[364754707,1749229865992,-93061.8412354,0.00028034,2]
[364754708,1749229866002,-10042.5536334,0.00028034,2]
[364754709,1749229866011,-8857.6539685,0.00028034,2]
[364754710,1749229866021,-300.0,0.00028053,10]
[364754711,1749229866030,-1436.62148655,0.00028053,15]
[364754712,1749229866039,-480.0,0.00028053,5]
[364754713,1749229866048,-549.69134652,0.00028053,5]
[364754714,1749229866058,-151.0,0.00028053,7]
[364754715,1749229866067,-151.0,0.00028053,7]
[364754716,1749229866077,-160.122674,0.00028053,7]
[364754717,1749229866087,-151.0,0.00028053,7]
[364754718,1749229866097,-473.147601,0.00028053,7]
[364754719,1749229866106,-473.147601,0.00028053,7]
[364754720,1749229866116,-297.740512,0.00028053,7]
[364754721,1749229866125,-297.740512,0.00028053,7]
[364754722,1749229866135,-151.0,0.00028054,7]
[364754723,1749229866144,-151.0,0.00028054,7]
[364754724,1749229866154,-151.0,0.00028054,7]
[364754725,1749229866169,-151.0,0.00028054,7]
[364754726,1749229866178,-151.0,0.00028054,7]
[364754727,1749229866187,-151.0,0.00028054,7]
[364754728,1749229866197,-176.08573,0.00028054,7]
[364754729,1749229866206,-222.968153,0.00028054,7]
[364754730,1749229866216,-151.473032,0.00028054,7]
[364754731,1749229866225,-151.0,0.00028054,7]
[364754732,1749229866235,-151.0,0.00028054,7]
[364754733,1749229866244,-199.815143,0.00028054,7]
[364754734,1749229866253,-199.815143,0.00028054,7]
[364754735,1749229866263,-151.0,0.00028054,7]
[364754736,1749229866272,-151.0,0.00028054,7]
[364754737,1749229866281,-151.0,0.00028054,7]
[364754738,1749229866291,-151.0,0.00028054,7]
[364754739,1749229866301,-250.071268,0.00028054,7]
[364754740,1749229866311,-250.071268,0.00028054,7]
[364754741,1749229866321,-1053.821183,0.00028054,7]
[364754742,1749229866331,-1053.821183,0.00028054,7]
[364754743,1749229866342,-151.0,0.00028054,7]
[364754744,1749229866352,-813.484633,0.00028054,7]
[364754745,1749229866361,-383.621558,0.00028054,7]
[364754746,1749229866371,-813.484633,0.00028054,7]
[364754747,1749229866380,-383.621558,0.00028054,7]
[364754748,1749229866390,-383.34317481,0.00028054,5]
[364754749,1749229866400,-151.0,0.00028054,7]
[364754750,1749229866413,-227.336484,0.00028054,7]
[364754751,1749229866422,-461.872158,0.00028054,7]
[364754752,1749229866432,-461.872158,0.00028054,7]
[364754753,1749229866441,-480.0,0.00028054,5]
[364754754,1749229866451,-480.0,0.00028054,5]
[364754755,1749229866460,-155.137648,0.00028054,7]
[364754756,1749229866470,-480.0,0.00028054,5]
[364754757,1749229866479,-480.0,0.00028054,5]
[364754758,1749229866488,-1010.98,0.00028054,5]
[364754759,1749229866497,-480.0,0.00028054,5]
[364754760,1749229866507,-480.0,0.00028054,5]
[364754761,1749229866517,-666.83,0.00028054,5]
[364754762,1749229866526,-151.0,0.00028054,7]
[364754763,1749229866536,-1122.19802,0.00028054,7]
[364754764,1749229866546,-151.0,0.00028054,7]
[364754765,1749229866555,-1122.19802,0.00028054,7]
[364754766,1749229866565,-151.0,0.00028054,7]
[364754767,1749229866575,-151.0,0.00028054,7]
[364754768,1749229866584,-480.0,0.00028054,5]
[364754769,1749229866594,-480.0,0.00028054,5]
[364754770,1749229866604,-480.0,0.00028054,5]
[364754771,1749229866616,-480.0,0.00028054,5]
[364754772,1749229866626,-480.0,0.00028054,5]
[364754773,1749229866636,-480.0,0.00028054,5]
[364754774,1749229866645,-151.0,0.00028054,7]
[364754775,1749229866656,-480.0,0.00028054,5]
[364754776,1749229866667,-480.0,0.00028054,5]
[364754777,1749229866677,-232.37679818,0.00028054,5]
[364754778,1749229866688,-480.0,0.00028054,5]
[364754779,1749229866697,-480.0,0.00028054,5]
[364754780,1749229866707,-1011.49,0.00028054,5]
[364754781,1749229866717,-240.486893,0.00028054,7]
[364754782,1749229866727,-480.0,0.00028054,5]
[364754783,1749229866738,-151.0,0.00028054,7]
[364754784,1749229866748,-240.486893,0.00028054,7]
[364754785,1749229866757,-151.0,0.00028054,7]
[364754786,1749229866767,-253.63786909,0.00028054,5]
[364754787,1749229866777,-558.43,0.00028054,5]
[364754788,1749229866786,-610.13,0.00028054,5]
[364754789,1749229866796,-480.0,0.00028054,5]
[364754790,1749229866806,-152.113808,0.00028054,7]
[364754791,1749229866816,-480.0,0.00028054,5]
[364754792,1749229866826,-1715.86,0.00028054,5]
[364754793,1749229866835,-807.41,0.00028054,5]
[364754794,1749229866845,-151.0,0.00028054,7]
[364754795,1749229866855,-480.0,0.00028054,5]
[364754796,1749229866864,-602.58,0.00028054,5]
[364754797,1749229866873,-480.0,0.00028054,5]
[364754798,1749229866883,-369.817025,0.00028054,7]
[364754799,1749229866892,-369.817025,0.00028054,7]
[364754800,1749229866902,-480.0,0.00028054,5]
[364754801,1749229866913,-480.0,0.00028054,5]
[364754802,1749229866923,-151.0,0.00028054,7]
[364754803,1749229866933,-480.0,0.00028054,5]
[364754804,1749229866943,-176.947066,0.00028054,7]
[364754805,1749229866953,-480.0,0.00028054,5]
[364754806,1749229866962,-550.31,0.00028054,5]
[364754807,1749229866972,-480.0,0.00028054,5]
[364754808,1749229866982,-176.947066,0.00028054,7]
[364754809,1749229866992,-622.13,0.00028054,5]
[364754810,1749229867002,-480.0,0.00028054,5]
[364754811,1749229867011,-599.55,0.00028054,5]
[364754812,1749229867021,-480.0,0.00028054,5]
[364754813,1749229867031,-454.52878552,0.00028054,5]
[364754814,1749229867040,-480.0,0.00028054,5]
[364754815,1749229867049,-480.0,0.00028054,5]
[364754816,1749229867059,-480.0,0.00028054,5]
[364754817,1749229867068,-490.64,0.00028054,5]
[364754818,1749229867078,-395.96491286,0.00028054,5]
[364754819,1749229867088,-480.0,0.00028054,5]
[364754820,1749229867097,-203.189938,0.00028054,7]
[364754821,1749229867107,-203.189938,0.00028054,7]
[364754822,1749229867116,-480.0,0.00028054,5]
[364754823,1749229867126,-480.0,0.00028054,5]
[364754824,1749229867135,-2384.26,0.00028054,5]
[364754825,1749229867145,-151.0,0.00028054,7]
[364754826,1749229867154,-480.0,0.00028054,5]
[364754827,1749229867166,-480.0,0.00028054,5]
[364754828,1749229867178,-653.07,0.00028054,5]
[364754829,1749229867188,-480.0,0.00028054,5]
[364754830,1749229867197,-480.0,0.00028054,5]
[364754831,1749229867206,-757.83,0.00028054,5]
[364754832,1749229867215,-458.03305328,0.00028054,5]
[364754833,1749229867225,-480.0,0.00028054,5]
[364754834,1749229867235,-1601.61,0.00028054,5]
[364754835,1749229867244,-589.54,0.00028054,5]
[364754836,1749229867254,-480.0,0.00028054,5]
[364754837,1749229867264,-1346.978979,0.00028054,7]
[364754838,1749229867274,-151.0,0.00028054,7]
[364754839,1749229867284,-1346.978979,0.00028054,7]
[364754840,1749229867293,-229.42916,0.00028054,7]
[364754841,1749229867303,-480.0,0.00028054,5]
[364754842,1749229867312,-229.42916,0.00028054,7]
[364754843,1749229867322,-480.0,0.00028054,5]
[364754844,1749229867331,-714.86,0.00028054,5]
[364754845,1749229867341,-480.0,0.00028054,5]
[364754846,1749229867350,-777.0,0.00028054,5]
[364754847,1749229867360,-480.0,0.00028054,5]
[364754848,1749229867370,-1293.92,0.00028054,5]
[364754849,1749229867379,-480.0,0.00028054,5]
[364754850,1749229867389,-480.0,0.00028054,5]
[364754851,1749229867398,-480.0,0.00028054,5]
[364754852,1749229867409,-952.4,0.00028054,5]
[364754853,1749229867419,-692.87,0.00028054,5]
[364754854,1749229867429,-1552.44,0.00028054,5]
[364754855,1749229867439,-824.69,0.00028054,5]
[364754856,1749229867449,-878.5,0.00028054,5]
[364754857,1749229867458,-480.0,0.00028054,5]
[364754858,1749229867468,-480.0,0.00028054,5]
[364754859,1749229867477,-1820.97,0.00028054,5]
[364754860,1749229867487,-1445.92,0.00028054,5]
[364754861,1749229867496,-480.0,0.00028054,5]
[364754862,1749229867506,-686.33,0.00028054,5]
[364754863,1749229867515,-1256.45,0.00028054,5]
[364754864,1749229867525,-1202.277604,0.00028054,7]
[364754865,1749229867535,-1202.277604,0.00028054,7]
[364754866,1749229867544,-1113.88,0.00028054,5]
[364754867,1749229867554,-480.0,0.00028054,5]
[364754868,1749229867563,-480.0,0.00028054,5]
[364754869,1749229867573,-876.31,0.00028054,5]
[364754870,1749229867582,-872.88,0.00028054,5]
[364754871,1749229867592,-565.93,0.00028054,5]
[364754872,1749229867601,-480.0,0.00028054,5]
[364754873,1749229867611,-757.79,0.00028054,5]
[364754874,1749229867620,-767.93,0.00028054,5]
[364754875,1749229867630,-379.208433,0.00028054,7]
[364754876,1749229867640,-379.208433,0.00028054,7]
[364754877,1749229867650,-480.0,0.00028054,5]
[364754878,1749229867660,-1120.8,0.00028054,5]
[364754879,1749229867670,-480.0,0.00028054,5]
[364754880,1749229867680,-299.41537911,0.00028054,5]
[364754881,1749229867692,-695.31,0.00028054,5]
[364754882,1749229867702,-673.95,0.00028054,5]
[364754883,1749229867711,-480.0,0.00028054,5]
[364754884,1749229867720,-931.01,0.00028054,5]
[364754885,1749229867730,-480.0,0.00028054,5]
[364754886,1749229867740,-480.0,0.00028054,5]
[364754887,1749229867749,-480.0,0.00028054,5]
[364754888,1749229867758,-504.93524171,0.00028054,5]
[364754889,1749229867768,-480.0,0.00028054,5]
[364754890,1749229867778,-480.0,0.00028054,5]
[364754891,1749229867787,-618.15788722,0.00028054,5]
[364754892,1749229867799,-480.0,0.00028054,5]
[364754893,1749229867814,-609.77,0.00028054,5]
[364754894,1749229867823,-480.0,0.00028054,5]
[364754895,1749229867833,-480.0,0.00028054,5]
[364754896,1749229867842,-1281.91,0.00028054,5]
[364754897,1749229867852,-480.0,0.00028054,5]
[364754898,1749229867863,-816.61,0.00028054,5]
[364754899,1749229867872,-764.02,0.00028054,5]
[364754900,1749229867881,-1371.81,0.00028054,5]
[364754901,1749229867891,-1580.65,0.00028054,5]
[364754902,1749229867900,-480.0,0.00028054,5]
[364754903,1749229867909,-480.0,0.00028054,5]
[364754904,1749229867919,-583.36,0.00028054,5]
[364754905,1749229867928,-533.29,0.00028054,5]
[364754906,1749229867937,-480.0,0.00028054,5]
[364754907,1749229867947,-979.62,0.00028054,5]
[364754908,1749229867956,-480.0,0.00028054,5]
[364754909,1749229867966,-480.0,0.00028054,5]
[364754910,1749229867976,-480.0,0.00028054,5]
[364754911,1749229867986,-680.63,0.00028054,5]
[364754912,1749229867995,-610.2,0.00028054,5]
[364754913,1749229868006,-480.0,0.00028054,5]
[364754914,1749229868017,-767.55,0.00028054,5]
[364754915,1749229868026,-480.0,0.00028054,5]
[364754916,1749229868036,-480.0,0.00028054,5]
[364754917,1749229868046,-201.8274199,0.00028054,5]
[364754918,1749229868055,-480.0,0.00028054,5]
[364754919,1749229868065,-1108.13,0.00028054,5]
[364754920,1749229868074,-1055.72,0.00028054,5]
[364754921,1749229868084,-1139.21,0.00028054,5]
[364754922,1749229868093,-480.0,0.00028054,5]
[364754923,1749229868103,-480.0,0.00028054,5]
[364754924,1749229868113,-1478.89,0.00028054,5]
[364754925,1749229868122,-2223.030084,0.00028054,7]
[364754926,1749229868132,-732.79,0.00028054,5]
[364754927,1749229868142,-2223.030084,0.00028054,7]
[364754928,1749229868151,-480.0,0.00028054,5]
[364754929,1749229868162,-202.034528,0.00028054,7]
[364754930,1749229868171,-731.83,0.00028054,5]
[364754931,1749229868181,-461.88179472,0.00028054,5]
[364754932,1749229868191,-639.73,0.00028054,5]
[364754933,1749229868201,-202.034528,0.00028054,7]
[364754934,1749229868211,-151.0,0.00028054,7]
[364754935,1749229868221,-956.02,0.00028054,5]
[364754936,1749229868231,-1739.7,0.00028054,5]
[364754937,1749229868240,-1036.79,0.00028054,5]
[364754938,1749229868249,-2235.27,0.00028054,5]
[364754939,1749229868260,-480.0,0.00028054,5]
[364754940,1749229868270,-391.85617348,0.00028054,5]
[364754941,1749229868280,-504.96,0.00028054,5]
[364754942,1749229868290,-480.0,0.00028054,5]
[364754943,1749229868299,-539.64,0.00028054,5]
[364754944,1749229868309,-1178.04,0.00028054,5]
[364754945,1749229868486,-151.0,0.00028054,7]
[364754946,1749229868508,-480.0,0.00028054,5]
[364754947,1749229868518,-625.79225979,0.00028054,5]
[364754948,1749229868528,-995.2,0.00028054,5]
[364754949,1749229868538,-1300.218002,0.00028054,7]
[364754950,1749229868547,-1300.218002,0.00028054,7]
[364754951,1749229868557,-499.1341257,0.00028054,5]
[364754952,1749229868566,-1178.83,0.00028054,5]
[364754953,1749229868575,-1100.7,0.00028054,5]
[364754954,1749229868585,-1284.64,0.00028054,5]
[364754955,1749229868594,-887.104213,0.00028054,7]
[364754956,1749229868603,-751.51,0.00028054,5]
[364754957,1749229868617,-835.65,0.00028054,5]
[364754958,1749229868626,-3636.22,0.00028054,5]
[364754959,1749229868636,-887.104213,0.00028054,7]
[364754960,1749229868646,-480.0,0.00028054,5]
[364754961,1749229868655,-600.0,0.00028054,30]
[364754962,1749229868666,-1074.16,0.00028054,5]
[364754963,1749229868675,-5321.9,0.00028054,5]
[364754964,1749229868684,-480.0,0.00028054,5]
[364754965,1749229868694,-480.0,0.00028054,5]
[364754966,1749229868704,-480.0,0.00028054,5]
[364754967,1749229868713,-987.67,0.00028054,5]
[364754968,1749229868723,-480.0,0.00028054,5]
[364754969,1749229868732,-700.11,0.00028054,5]
[364754970,1749229868742,-2080.45,0.00028054,5]
[364754971,1749229868751,-480.0,0.00028054,5]
[364754972,1749229868760,-734.66,0.00028054,5]
[364754973,1749229868769,-6395.04,0.00028054,5]
[364754974,1749229868779,-480.0,0.00028054,5]
[364754975,1749229868788,-480.0,0.00028054,5]
[364754976,1749229868797,-835.42,0.00028054,5]
[364754977,1749229868806,-480.0,0.00028054,5]
[364754978,1749229868816,-713.79,0.00028054,5]
[364754979,1749229868825,-2288.96,0.00028054,5]
[364754980,1749229868834,-1697.69,0.00028054,5]
[364754981,1749229868844,-727.92,0.00028054,5]
[364754982,1749229868853,-12208.62,0.00028054,5]
[364754983,1749229868864,-3886.76,0.00028054,5]
[364754984,1749229868873,-480.0,0.00028054,5]
[364754985,1749229868882,-6723.06,0.00028054,5]
[364754986,1749229868892,-2328.748482,0.00028054,5]
[364754987,1749229868902,-480.0,0.00028054,5]
[364754988,1749229868912,-480.0,0.00028054,5]
[364754989,1749229868922,-3392.86,0.00028054,5]
[364754990,1749229868931,-151.0,0.00028054,7]
[364754991,1749229868941,-540.76,0.00028054,5]
[364754992,1749229868950,-527.54,0.00028054,5]
[364754993,1749229868959,-1957.55,0.00028054,5]
[364754994,1749229868968,-480.0,0.00028054,5]
[364754995,1749229868978,-1317.74,0.00028054,5]
[364754996,1749229868987,-2152.11,0.00028054,5]
[364754997,1749229868997,-9718.94,0.00028054,5]
[364754998,1749229869007,-480.0,0.00028054,5]
[364754999,1749229869016,-76268.38,0.00028054,5]
[364755000,1749229869025,-978.82,0.00028054,5]
[364755001,1749229869034,-422.92355309,0.00028054,5]
[364755002,1749229869043,-1959.11,0.00028054,5]
[364755003,1749229869053,-480.0,0.00028054,5]
[364755004,1749229869062,-587.06,0.00028054,5]
[364755005,1749229869071,-499.91,0.00028054,5]
[364755006,1749229869081,-725.67,0.00028054,5]
[364755007,1749229869090,-480.0,0.00028054,5]
[364755008,1749229869100,-2136.804126,0.00028054,5]
[364755009,1749229869111,-3764.36,0.00028054,5]
[364755010,1749229869120,-9211.11,0.00028054,5]
[364755011,1749229869130,-1051.06,0.00028054,5]
[364755012,1749229869139,-151.0,0.00028054,7]
[364755013,1749229869148,-1366.23,0.00028054,5]
[364755014,1749229869158,-2252.79,0.00028054,5]
[364755015,1749229869168,-983.23,0.00028054,5]
[364755016,1749229869177,-1624.53,0.00028054,5]
[364755017,1749229869186,-2500.86,0.00028054,5]
[364755018,1749229869195,-508.09,0.00028054,5]
[364755019,1749229869205,-2408.48,0.00028054,5]
[364755020,1749229869214,-1199.82,0.00028054,5]
[364755021,1749229869223,-2706.51,0.00028054,5]
[364755022,1749229869232,-480.0,0.00028054,5]
[364755023,1749229869241,-1867.89,0.00028054,5]
[364755024,1749229869250,-1202.07,0.00028054,5]
[364755025,1749229869260,-1234.98,0.00028054,5]
[364755026,1749229869269,-745.42,0.00028054,5]
[364755027,1749229869278,-1000.0,0.00028054,5]
[364755028,1749229869288,-480.0,0.00028054,5]
[364755029,1749229869297,-3729.37,0.00028054,5]
[364755030,1749229869307,-1324.5,0.00028054,5]
[364755031,1749229869316,-480.0,0.00028054,5]
[364755032,1749229869326,-480.0,0.00028054,5]
[364755033,1749229869336,-722.71,0.00028054,5]
[364755034,1749229869345,-1417.88,0.00028054,5]
[364755035,1749229869355,-1476.23,0.00028054,5]
[364755036,1749229869365,-480.0,0.00028054,5]
[364755037,1749229869374,-868.6,0.00028054,5]
[364755038,1749229869383,-1888.62,0.00028054,5]
[364755039,1749229869393,-480.0,0.00028054,5]
[364755040,1749229869402,-632.37,0.00028054,5]
[364755041,1749229869413,-480.0,0.00028054,5]
[364755042,1749229869422,-756.12,0.00028054,5]
[364755043,1749229869432,-1440.17,0.00028054,5]